bitfinex-derivatives/quotes_SOLF0:USTF0_20250909
["timestamp","ask_amount","ask_price","bid_price","bid_amount"]
[1757459978264,0.03305011,217.22,217.19,0.28]
[1757459978663,0.03305011,217.22,217.2,0.28]
[1757459978873,0.03305011,217.22,217.18,1.93764699]
[1757459979167,0.03305011,217.22,217.19,0.28]
[1757459981063,0.03305011,217.22,217.2,0.28]
[1757459981263,0.03305011,217.22,217.21,0.28]
[1757459981659,0.03305011,217.22,217.2,1.93764699]
[1757459981865,0.03305011,217.22,217.16,0.28]
[1757459982066,0.03305011,217.22,217.17,1.93764699]
[1757459982265,0.03305011,217.22,217.14,3.83381199]
[1757459982466,7.60305011,217.22,217.16,1.93764699]
[1757459983165,7.60305011,217.22,217.15,0.28]
[1757459983166,9.5406971,217.22,217.15,0.28]
[1757459984069,9.5406971,217.22,217.15,2.21764699]
[1757459985571,9.5406971,217.22,217.18,0.28]
[1757459985572,0.03305011,217.22,217.18,0.28]
[1757459985868,0.03305011,217.22,217.19,2.21764699]
[1757459986068,0.03305011,217.22,217.13,3.83381199]
[1757459986069,0.03305011,217.22,217.21,2.21764699]
[1757459989777,0.03305011,217.22,217.21,0.28]
[1757459989977,0.03305011,217.22,217.21,2.21764699]
[1757459994982,0.03305011,217.22,217.21,0.28]
[1757459995282,0.03305011,217.22,217.21,2.21764699]
[1757459997178,0.03305011,217.22,217.21,1.93764699]
[1757459997682,0.03305011,217.22,217.21,2.21764699]
[1757460000382,7.41,217.34,217.22,0.25]
[1757460000684,7.41,217.34,217.28,1.93764699]
[1757460001583,7.41,217.34,217.29,0.03039967]
[1757460001783,7.41,217.36,217.29,0.03039967]
[1757460005084,7.41,217.36,217.29,0.28039967]
[1757460005285,7.41,217.36,217.3,1.93764699]
[1757460006692,7.41,217.48,217.33,0.25]
[1757460006888,7.41,217.4,217.34,1.93764699]
[1757460007390,7.41,217.4,217.35,0.03331261]
[1757460007991,1.93764699,217.41,217.35,0.03331261]
[1757460008389,7.41,217.4,217.35,0.03331261]
[1757460008584,1.93764699,217.41,217.35,0.03331261]
[1757460008788,7.41,217.4,217.35,0.03331261]
[1757460008990,1.93764699,217.41,217.35,0.03331261]
[1757460009991,7.41,217.4,217.35,0.03331261]
[1757460010289,7.41,217.41,217.35,0.03331261]
[1757460010892,7.41,217.41,217.35,1.9709596]
[1757460011595,7.41,217.41,217.35,0.03331261]
[1757460011799,7.41,217.41,217.35,1.9709596]
[1757460012697,7.41,217.43,217.37,1.93764699]
[1757460013091,7.41,217.43,217.35,0.25]
[1757460013292,7.41,217.43,217.38,0.03270318]
[1757460013497,1.93764699,217.44,217.38,0.03270318]
[1757460013696,7.27,217.43,217.38,0.03270318]
[1757460013891,1.93764699,217.44,217.38,0.03270318]
[1757460014093,7.27,217.43,217.38,0.03270318]
[1757460014298,1.93764699,217.44,217.38,0.03270318]
[1757460014498,7.27,217.43,217.38,0.03270318]
[1757460016190,34.4,217.48,217.28,3.83381199]
[1757460016191,7.27,217.39,217.28,3.83381199]
[1757460016397,7.27,217.37,217.27,0.27]
[1757460016697,7.27,217.31,217.24,1.93764699]
[1757460016903,7.27,217.31,217.23,0.27]
[1757460017595,0.03281125,217.29,217.23,0.27]
[1757460018992,0.03281125,217.29,217.26,1.93764699]
[1757460019199,0.03281125,217.29,217.28,0.27]
[1757460019690,0.03281125,217.29,217.26,1.93764699]
[1757460019891,0.03281125,217.29,217.27,0.27]
[1757460021107,7.27,217.39,217.28,1.93764699]
[1757460021300,7.27,217.42,217.34,1.93764699]
[1757460021502,7.27,217.42,217.36,1.93764699]
[1757460022402,7.27,217.44,217.37,0.02975328]
[1757460024007,7.27,217.44,217.38,1.93764699]
[1757460024208,7.27,217.44,217.37,0.02975328]
[1757460027912,10.29644285,217.44,217.37,0.02975328]
[1757460028710,7.27,217.44,217.37,0.02975328]
[1757460052326,10.29644285,217.44,217.37,0.02975328]
[1757460053220,10.29644285,217.44,217.31,3.83381199]
[1757460053426,3.02644285,217.38,217.28,3.83381199]
[1757460053628,7.31,217.37,217.24,3.83381199]
[1757460054320,7.31,217.37,217.23,3.83381199]
[1757460054716,7.31,217.34,217.23,3.83381199]
[1757460055724,7.31,217.3,217.21,3.83381199]
[1757460056023,7.31,217.3,217.2,3.83381199]
[1757460056525,7.31,217.3,217.2,4.14381199]
[1757460057426,7.31,217.3,217.2,0.31]
[1757460059027,3.02644285,217.28,217.16,3.83381199]
[1757460059231,7.31,217.27,217.15,3.83381199]
[1757460059425,7.31,217.27,217.15,0.31]
[1757460059629,7.34048969,217.23,217.15,0.31]
[1757460060536,0.03048969,217.23,217.17,0.31]
[1757460060731,0.03048969,217.23,217.2,0.31]
[1757460061027,7.34048969,217.23,217.2,0.31]
[1757460061232,7.34048969,217.23,217.17,3.83381199]
[1757460061433,7.34048969,217.23,217.17,4.14381199]
[1757460061727,7.34048969,217.23,217.17,0.31]
[1757460063621,0.03048969,217.23,217.17,0.31]
[1757460064329,0.03048969,217.23,217.2,0.31]
[1757460064725,0.03048969,217.23,217.21,0.31]
[1757460064925,0.03048969,217.23,217.18,3.83381199]
[1757460064926,7.31,217.22,217.15,7.17025484]
[1757460065123,7.31,217.22,217.15,116.71644285]
[1757460065721,7.31,217.22,217.15,3.33644285]
[1757460066426,7.31,217.22,217.15,0.31]
[1757460066628,0.03048969,217.23,217.12,312.16644285]
[1757460066934,0.03048969,217.23,217.12,309.14]
[1757460067731,7.31,217.22,217.12,309.14]
[1757460068537,7.31,217.22,217.11,0.31]
[1757460073338,7.31,217.2,217.06,113.36]
[1757460073737,3.02644285,217.21,217.06,113.36]
[1757460074429,7.59,217.2,217.06,113.36]
[1757460075039,3.02644285,217.21,217.06,113.36]
[1757460075234,7.59,217.2,217.06,113.36]
[1757460075539,3.02644285,217.21,217.06,113.36]
[1757460076036,7.59,217.2,217.06,113.36]
[1757460076239,3.02644285,217.21,217.05,0.31]
[1757460076436,7.59,217.2,217.05,113.67]
[1757460076942,3.02644285,217.21,217.05,113.67]
[1757460077745,7.59,217.2,217.05,113.67]
[1757460077944,3.02644285,217.21,217.05,113.67]
[1757460078147,7.59,217.2,217.05,113.67]
[1757460078347,3.02644285,217.21,217.05,113.67]
[1757460078540,7.59,217.17,217.05,0.31]
[1757460085554,7.59,217.09,217.0,100.32]
[1757460085858,3.02644285,217.1,217.0,100.32]
[1757460086045,7.59,217.09,217.0,100.32]
[1757460086245,3.02644285,217.1,217.0,100.32]
[1757460086447,7.59,217.05,217.0,100.0]
[1757460086659,1.9432781,217.06,217.0,100.0]
[1757460086958,9.5332781,217.06,217.0,100.0]
[1757460093558,1.9432781,217.06,217.0,100.0]
[1757460093763,1.9432781,217.04,217.0,100.0]
[1757460093962,7.59,217.03,217.0,100.0]
[1757460094462,1.9432781,217.04,217.0,100.0]
[1757460094960,7.59,217.03,217.0,100.0]
[1757460095568,1.9432781,217.04,217.0,100.0]
[1757460095761,7.59,217.03,217.0,100.0]
[1757460096266,0.03199873,217.07,217.0,100.0]
[1757460096460,9.5332781,217.02,217.0,100.0]
[1757460096658,7.59,217.02,217.0,100.0]
[1757460097057,1.9432781,217.03,217.0,100.0]
[1757460097467,7.59,217.02,217.0,100.0]
[1757460097660,1.9432781,217.03,217.0,100.0]
[1757460097869,7.59,217.02,217.0,100.0]
[1757460098668,9.5332781,217.05,217.01,0.32]
[1757460098867,1.97527683,217.07,217.01,0.32]
[1757460101961,0.03199873,217.07,217.01,0.32]
[1757460107077,0.03199873,217.07,217.04,1.9432781]
[1757460107281,0.03199873,217.07,217.06,0.32]
[1757460108078,0.03199873,217.07,217.06,2.2632781]
[1757460108275,316.69,217.16,217.07,0.29]
[1757460108574,316.69,217.16,217.09,1.9432781]
[1757460109373,316.69,217.16,217.1,0.03088966]
[1757460109672,1.9432781,217.19,217.11,2.2332781]
[1757460109877,309.64,217.29,217.15,1.9432781]
[1757460109878,9.0332781,217.23,217.15,1.9432781]
[1757460110068,7.09,217.23,217.16,0.29]
[1757460110268,1.9432781,217.22,217.12,1.9432781]
[1757460110472,7.09,217.21,217.17,0.03249379]
[1757460110867,7.09,217.2,217.17,0.03249379]
[1757460111374,1.9432781,217.22,217.17,0.03249379]
[1757460111575,7.09,217.21,217.17,0.03249379]
[1757460112673,9.0332781,217.18,217.17,0.03249379]
[1757460115178,7.09,217.18,217.17,0.03249379]
[1757460115380,9.0332781,217.18,217.17,0.03249379]
[1757460119887,1.9432781,217.18,217.17,0.03249379]
[1757460120286,9.0332781,217.21,217.17,0.32249379]
[1757460120484,7.09,217.21,217.17,0.32249379]
[1757460120684,7.09,217.21,217.17,0.03249379]
[1757460121087,7.09,217.18,217.17,0.03249379]
[1757460121390,9.0332781,217.18,217.17,0.03249379]
[1757460122383,9.4932781,217.18,217.08,0.29]
[1757460122694,1.9432781,217.1,217.04,0.32]
[1757460122890,1.9432781,217.08,217.01,1.9432781]
[1757460123189,1.9432781,217.08,217.0,409.96]
[1757460123494,1.9432781,217.08,217.0,100.32]
[1757460123694,0.03224507,217.06,217.0,100.32]
[1757460125289,0.03224507,217.06,217.01,1.9432781]
[1757460125592,0.03224507,217.06,217.05,0.32]
[1757460127295,0.03224507,217.06,217.02,0.32]
[1757460127595,7.12224507,217.06,217.02,0.32]
[1757460135199,7.14,217.05,217.02,0.32]
[1757460136106,7.14,217.14,217.05,0.32]
[1757460136402,1.9432781,217.22,217.13,1.9432781]
[1757460136601,7.14,217.21,217.15,1.9432781]
[1757460137404,7.14,217.23,217.16,0.02984948]
[1757460140698,7.14,217.23,217.17,1.9432781]
[1757460143900,7.14,217.23,217.19,2.2632781]
[1757460144100,7.14,217.28,217.21,1.9432781]
[1757460144705,7.14,217.28,217.22,0.03065503]
[1757460146104,316.78,217.29,217.23,1.9432781]
[1757460146305,316.78,217.29,217.22,0.03065503]
[1757460148306,7.14,217.29,217.22,0.03065503]
[1757460149509,7.14,217.29,217.22,0.35065503]
[1757460150308,7.14,217.29,217.23,3.02998077]
[1757460150505,7.14,217.37,217.24,0.32]
[1757460150704,7.14,217.37,217.27,0.32]
[1757460151112,7.14,217.37,217.3,0.0324774]
[1757460158312,3.02998077,217.36,217.3,0.0324774]
[1757460158516,7.14,217.35,217.3,0.0324774]
[1757460160512,3.02998077,217.36,217.3,0.0324774]
[1757460160911,7.14,217.35,217.3,0.0324774]
[1757460162112,7.17268796,217.35,217.21,3.02998077]
[1757460162507,7.14,217.35,217.21,3.02998077]
[1757460162917,7.14,217.35,217.22,0.35]
[1757460163118,0.03003047,217.3,217.22,0.35]
[1757460180426,0.03003047,217.3,217.17,12.88]
[1757460180427,0.03003047,217.3,217.25,0.33]
[1757460180630,0.03003047,217.3,217.24,3.02998077]
[1757460180829,0.03003047,217.3,217.25,0.33]
[1757460182226,0.03003047,217.3,217.29,0.33]
[1757460183321,0.03003047,217.3,217.27,3.35998077]
[1757460183527,7.16,217.29,217.25,0.33]
[1757460183720,7.16,217.29,217.21,3.35998077]
[1757460184241,0.03003047,217.3,217.24,3.02998077]
[1757460184432,0.03003047,217.3,217.25,0.33]
[1757460184628,7.16,217.29,217.25,0.33]
[1757460185223,7.16,217.29,217.2,6.87175175]
[1757460185426,0.03003047,217.3,217.24,0.33]
[1757460185833,7.16,217.32,217.24,0.33]
[1757460186032,0.03532838,217.29,217.23,3.02998077]
[1757460186331,0.03532838,217.29,217.24,0.33]
[1757460186724,0.03532838,217.29,217.23,3.02998077]
[1757460187127,0.03532838,217.29,217.24,0.33]
[1757460187329,0.03532838,217.29,217.23,3.02998077]
[1757460187530,0.03532838,217.29,217.24,0.33]
[1757460187726,0.03532838,217.29,217.25,0.33]
[1757460188128,0.03532838,217.29,217.24,0.33]
[1757460188324,7.16,217.28,217.24,0.33]
[1757460190031,0.03532838,217.29,217.24,0.33]
[1757460190230,7.16,217.28,217.24,0.33]
[1757460190934,0.03532838,217.29,217.24,0.33]
[1757460191131,0.03532838,217.29,217.23,3.84177098]
[1757460191132,0.03532838,217.29,217.25,0.33]
[1757460191733,7.16,217.28,217.25,0.33]
[1757460192334,7.19532838,217.29,217.23,3.84177098]
[1757460195436,0.03532838,217.29,217.24,0.35]
[1757460195732,0.03532838,217.29,217.26,0.35]
[1757460196236,0.03532838,217.29,217.27,0.35]
[1757460196432,7.33532838,217.29,217.25,4.19177098]
[1757460197335,7.33532838,217.29,217.26,3.84177098]
[1757460197538,7.33532838,217.29,217.26,4.19177098]
[1757460198636,7.33532838,217.29,217.26,0.35]
[1757460199039,7.33532838,217.29,217.26,4.19177098]
[1757460199244,0.03532838,217.29,217.27,0.35]
[1757460199533,0.03532838,217.29,217.28,4.19177098]
[1757460201335,0.03532838,217.29,217.28,0.35]
[1757460203235,0.03532838,217.29,217.28,4.19557517]
[1757460203434,0.03532838,217.29,217.28,0.35]
[1757460206143,7.3,217.37,217.28,0.35]
[1757460206338,1.93734393,217.42,217.34,1.93734393]
[1757460206546,7.3,217.41,217.34,1.93734393]
[1757460206933,7.3,217.44,217.36,1.93734393]
[1757460207144,9.23734393,217.44,217.36,1.93734393]
[1757460207538,9.23734393,217.44,217.38,0.03276089]
[1757460214050,7.3,217.44,217.38,1.97010482]
[1757460220553,7.3,217.44,217.38,0.03276089]
[1757460220762,7.3,217.46,217.39,1.93734393]
[1757460232470,1.93734393,217.43,217.38,0.03276089]
[1757460232671,7.59,217.42,217.38,0.03276089]
[1757460232871,120.81,217.42,217.38,0.03276089]
[1757460233871,7.59,217.4,217.38,0.03276089]
[1757460234669,7.59,217.38,217.31,1.93734393]
[1757460239577,7.59,217.38,217.34,0.38]
[1757460240178,7.62095112,217.38,217.34,0.38]
[1757460240677,0.03095112,217.38,217.37,1.93734393]
[1757460241567,0.03095112,217.38,217.37,2.31734393]
[1757460243775,0.03095112,217.38,217.33,3.82521669]
[1757460243980,7.62095112,217.38,217.36,1.93734393]
[1757460244278,0.03095112,217.38,217.36,2.31734393]
[1757460245079,0.03095112,217.38,217.36,0.38]
[1757460245275,7.62095112,217.38,217.32,4.20521669]
[1757460245580,7.62095112,217.38,217.36,1.93734393]
[1757460251686,0.03095112,217.38,217.37,0.38]
[1757460261583,7.73095112,217.38,217.36,5.76256062]
[1757460261790,7.7,217.37,217.34,1.93734393]
[1757460262690,7.7,217.37,217.34,2.31734393]
[1757460265797,0.03095112,217.38,217.35,0.38]
[1757460265992,0.03095112,217.38,217.36,1.93734393]
[1757460268092,0.03095112,217.38,217.37,0.38]
[1757460268796,0.03095112,217.38,217.34,0.38]
[1757460268991,0.03095112,217.38,217.35,0.38]
[1757460270000,7.73095112,217.38,217.35,0.38]
[1757460272700,0.03095112,217.38,217.35,0.38]
[1757460272900,7.7,217.37,217.35,0.38]
[1757460273901,7.7,217.37,217.34,3.83754783]
[1757460274097,7.7,217.37,217.34,4.21754783]
[1757460275503,0.03095112,217.38,217.35,4.21754783]
[1757460275704,0.03095112,217.38,217.36,0.38]
[1757460275899,0.03095112,217.38,217.37,0.38]
[1757460276105,0.03095112,217.38,217.37,4.21754783]
[1757460282508,0.03095112,217.38,217.37,0.38]
[1757460285407,0.03095112,217.38,217.35,5.44879493]
[1757460285709,0.03095112,217.38,217.37,4.20121869]
[1757460287607,0.03095112,217.38,217.37,3.84121869]
[1757460288907,7.59095112,217.38,217.37,3.84121869]
[1757460289109,0.03095112,217.38,217.37,3.84121869]
[1757460289415,0.03095112,217.38,217.37,4.21121869]
[1757460289616,0.03095112,217.38,217.37,7.23775747]
[1757460290116,0.03095112,217.38,217.37,3.39653878]
[1757460292517,7.56,217.45,217.37,3.39653878]
[1757460292717,7.56,217.45,217.38,4.21059911]
[1757460294914,7.56,217.45,217.38,3.84059911]
[1757460295319,7.56,217.45,217.37,3.84059911]
[1757460297622,7.56,217.45,217.37,4.21059911]
[1757460298420,7.56,217.45,217.38,3.84059911]
[1757460300411,7.56,217.45,217.35,5.12328822]
[1757460300412,7.56,217.45,217.36,3.84059911]
[1757460301415,7.56,217.45,217.37,3.84059911]
[1757460301723,7.56,217.45,217.35,3.8750924]
[1757460302020,7.56,217.45,217.36,4.21059911]
[1757460302212,7.56,217.45,217.37,3.84059911]
[1757460305324,7.56,217.45,217.36,0.37]
[1757460305625,7.56,217.45,217.37,3.84126856]
[1757460305821,7.56,217.45,217.38,4.21126856]
[1757460308628,7.56,217.45,217.38,3.84126856]
[1757460308818,7.56,217.45,217.35,3.87576185]
[1757460309023,7.56,217.45,217.35,0.03449329]
[1757460309718,7.56,217.45,217.35,3.87576185]
[1757460311525,10.58653878,217.45,217.35,3.87576185]
[1757460311929,3.02653878,217.42,217.35,0.03449329]
[1757460312230,7.56,217.41,217.35,0.03449329]
[1757460316532,3.02653878,217.39,217.35,0.03449329]
[1757460317037,33.98653878,217.39,217.35,0.03449329]
[1757460317224,7.66,217.38,217.26,4.22126856]
[1757460317425,7.66,217.38,217.26,0.38]
[1757460318531,0.0310856,217.34,217.26,0.38]
[1757460318726,7.66,217.33,217.26,0.38]
[1757460323942,7.66,217.33,217.28,0.41]
[1757460324134,0.0310856,217.34,217.28,0.41]
[1757460326639,0.0310856,217.34,217.28,3.84126856]
[1757460326938,0.0310856,217.34,217.29,0.41]
[1757460327344,0.0310856,217.34,217.28,3.84126856]
[1757460327540,7.6910856,217.34,217.3,0.41]
[1757460327841,7.6910856,217.34,217.28,3.84126856]
[1757460328244,7.6910856,217.34,217.29,0.41]
[1757460328542,7.6910856,217.34,217.28,3.84126856]
[1757460328934,7.6910856,217.34,217.29,0.41]
[1757460329341,7.6910856,217.34,217.28,3.84126856]
[1757460329547,7.6910856,217.34,217.28,4.25126856]
[1757460330546,7.66,217.33,217.31,1.93781852]
[1757460332549,7.66,217.33,217.29,1.93781852]
[1757460332745,7.66,217.33,217.26,5.77908708]
[1757460332947,7.66,217.33,217.26,1.93781852]
[1757460333544,7.66,217.31,217.24,6.18908708]
[1757460333841,7.66,217.31,217.24,1.93781852]
[1757460335546,7.66,217.31,217.23,3.84126856]
[1757460335744,7.66,217.31,217.22,108.8002569]
[1757460335944,1.93781852,217.32,217.22,104.95898834]
[1757460336145,0.03350767,217.29,217.22,104.95898834]
[1757460336347,7.66,217.28,217.22,104.95898834]
[1757460337249,7.66,217.28,217.22,103.02116982]
[1757460337449,0.03350767,217.29,217.22,103.02116982]
[1757460337648,1.93781852,217.28,217.22,103.02116982]
[1757460338149,7.66,217.27,217.22,103.02116982]
[1757460338350,7.66,217.27,217.2,1.93781852]
[1757460340656,7.66,217.27,217.2,2.34781852]
[1757460346958,7.24,217.28,217.22,1.93781852]
[1757460347660,7.24,217.26,217.21,0.42]
[1757460347959,7.27255682,217.27,217.21,0.42]
[1757460348656,7.27255682,217.27,217.22,1.93781852]
[1757460348657,0.03255682,217.27,217.22,1.93781852]
[1757460348859,7.27255682,217.27,217.23,0.42]
[1757460349754,7.24,217.26,217.22,1.93781852]
[1757460349954,0.03255682,217.27,217.22,2.35781852]
[1757460350252,7.24,217.26,217.22,2.35781852]
[1757460353563,0.03255682,217.27,217.22,2.35781852]
[1757460353959,7.24,217.26,217.22,1.93781852]
[1757460354262,7.24,217.26,217.2,5.77908708]
[1757460357062,7.24,217.26,217.21,0.42]
[1757460357259,7.24,217.26,217.2,6.19908708]
[1757460359365,7.24,217.26,217.22,1.93781852]
[1757460359566,7.24,217.26,217.23,0.42]
[1757460361063,7.24,217.26,217.22,1.93781852]
[1757460361267,0.03255682,217.27,217.22,1.93781852]
[1757460361470,7.24,217.26,217.22,1.93781852]
[1757460361674,0.03255682,217.27,217.22,1.93781852]
[1757460362274,7.24,217.26,217.22,1.93781852]
[1757460362475,0.03255682,217.27,217.22,1.93781852]
[1757460362672,7.24,217.26,217.22,2.35781852]
[1757460362871,0.03255682,217.27,217.22,2.35781852]
[1757460363072,7.24,217.26,217.22,2.35781852]
[1757460363575,7.24,217.26,217.2,5.77908708]
[1757460363973,7.24,217.26,217.2,1.93781852]
[1757460364573,7.24,217.26,217.21,0.42]
[1757460364773,7.24,217.26,217.2,6.19908708]
[1757460365777,7.24,217.26,217.2,3.84126856]
[1757460365975,7.24,217.24,217.17,5.77908708]
[1757460366478,7.24,217.24,217.21,1.93781852]
[1757460366679,7.24,217.26,217.23,1.93781852]
[1757460366977,7.24,217.26,217.23,2.35781852]
[1757460370476,7.24,217.26,217.21,5.77908708]
[1757460370680,7.24,217.26,217.2,1.93781852]
[1757460370877,7.24,217.26,217.18,1.93781852]
[1757460371178,9.17781852,217.26,217.18,1.93781852]
[1757460371378,9.17781852,217.26,217.18,5.77908708]
[1757460372279,7.24,217.26,217.2,1.93781852]
[1757460374279,9.17781852,217.26,217.18,3.84126856]
[1757460374485,9.17781852,217.26,217.17,3.84126856]
[1757460374876,1.93781852,217.22,217.16,3.84126856]
[1757460375084,7.62,217.21,217.14,5.77908708]
[1757460375683,0.03240669,217.2,217.14,5.77908708]
[1757460375883,7.62,217.19,217.14,5.77908708]
[1757460376083,0.03240669,217.2,217.14,5.77908708]
[1757460376784,7.65240669,217.2,217.14,5.77908708]
[1757460377285,7.65240669,217.2,217.15,3.84126856]
[1757460377480,7.62,217.19,217.15,4.26126856]
[1757460377780,7.62,217.19,217.16,0.42]
[1757460377985,0.03240669,217.2,217.17,0.42]
[1757460378179,0.03240669,217.2,217.18,2.35781852]
[1757460380683,7.65240669,217.2,217.16,6.21318306]
[1757460381186,7.62,217.19,217.16,5.79318306]
[1757460381391,0.03240669,217.2,217.16,5.79318306]
[1757460381690,7.62,217.19,217.16,5.79318306]
[1757460382993,0.03240669,217.2,217.16,5.79318306]
[1757460383189,7.62,217.19,217.16,5.79318306]
[1757460383791,0.03240669,217.2,217.17,0.42]
[1757460384890,0.03240669,217.2,217.18,0.42]
[1757460385091,0.03240669,217.2,217.17,0.42]
[1757460385395,0.03240669,217.2,217.18,0.42]
[1757460386190,7.65240669,217.2,217.16,6.21318306]
[1757460386391,7.62,217.19,217.16,2.35781852]
[1757460386790,0.03240669,217.2,217.17,0.42]
[1757460387494,0.03240669,217.2,217.16,1.93781852]
[1757460387495,0.03240669,217.2,217.18,1.93781852]
[1757460387690,0.03240669,217.2,217.19,0.42]
[1757460393301,0.03240669,217.2,217.19,4.27536454]
[1757460395995,0.03240669,217.2,217.19,0.42]
[1757460400801,0.03240669,217.2,217.18,0.42]
[1757460401503,0.03240669,217.2,217.19,0.42]
[1757460404405,0.03240669,217.2,217.18,0.42]
[1757460404605,0.03240669,217.2,217.19,0.42]
[1757460405007,0.03240669,217.2,217.19,3.4507512]
[1757460405397,7.28,217.27,217.19,3.4507512]
[1757460405601,7.28,217.27,217.21,0.42]
[1757460406809,7.28,217.33,217.22,0.02918381]
[1757460409805,3.0307512,217.32,217.22,0.02918381]
[1757460410011,7.28,217.31,217.22,0.02918381]
[1757460417619,7.28,217.31,217.25,3.0307512]
[1757460417823,8.17242802,217.4,217.27,4.26465013]
[1757460417824,7.28,217.39,217.27,4.26465013]
[1757460418323,7.28,217.39,217.27,0.41]
[1757460418523,7.28,217.39,217.31,0.03537937]
[1757460423730,7.28,217.37,217.31,0.03537937]
[1757460442139,7.28,217.37,217.32,0.42]
[1757460442745,7.28,217.37,217.31,3.06613057]
[1757460442948,0.03077205,217.37,217.34,3.0307512]
[1757460443147,0.03077205,217.37,217.36,0.42]
[1757460452457,0.03077205,217.37,217.36,2.35664069]
[1757460453758,0.03077205,217.37,217.36,1.93664069]
[1757460458763,0.03077205,217.37,217.36,2.35664069]
[1757460462259,7.16,217.36,217.33,2.35664069]
[1757460463158,7.16,217.36,217.34,0.42]
[1757460465456,7.02077205,217.37,217.34,0.41]
[1757460466257,7.02077205,217.37,217.33,1.93664069]
[1757460466660,7.02077205,217.37,217.34,0.41]
[1757460468059,6.99,217.36,217.31,6.23667019]
[1757460468263,0.03077205,217.37,217.31,2.38202006]
[1757460468468,6.99,217.36,217.31,2.38202006]
[1757460469365,0.03077205,217.37,217.31,2.38202006]
[1757460469667,6.99,217.36,217.31,0.03537937]
[1757460470367,0.03077205,217.37,217.31,0.03537937]
[1757460470563,6.99,217.36,217.31,0.03537937]
[1757460472262,0.03077205,217.37,217.31,0.03537937]
[1757460472462,6.99,217.36,217.31,0.03537937]
[1757460472861,0.03077205,217.37,217.31,0.03537937]
[1757460473064,6.99,217.36,217.31,0.03537937]
[1757460473264,0.03077205,217.37,217.31,0.03537937]
[1757460473470,6.99,217.36,217.31,0.03537937]
[1757460473666,0.03077205,217.37,217.31,0.03537937]
[1757460474364,6.99,217.36,217.31,0.03537937]
[1757460474766,0.03077205,217.37,217.31,0.03537937]
[1757460475162,7.02077205,217.37,217.31,0.03537937]
[1757460475370,7.02077205,217.37,217.31,2.38202006]
[1757460476466,7.02077205,217.37,217.31,1.97202006]
[1757460476770,6.99,217.35,217.31,0.03537937]
[1757460477069,6.99,217.33,217.31,0.03537937]
[1757460478165,6.99,217.33,217.25,1.93664069]
[1757460479471,1.93664069,217.34,217.25,1.93664069]
[1757460479472,6.99,217.3,217.25,1.93664069]
[1757460479769,0.03394135,217.31,217.25,1.93664069]
[1757460479962,6.99,217.3,217.25,1.93664069]
[1757460480667,0.03394135,217.31,217.25,1.93664069]
[1757460480872,6.99,217.3,217.25,1.93664069]
[1757460481172,0.03394135,217.31,217.25,1.93664069]
[1757460481366,6.99,217.3,217.23,5.79129082]
[1757460481573,8.92664069,217.3,217.21,1.93664069]
[1757460484274,6.99,217.27,217.2,1.93664069]
[1757460484973,0.03484737,217.26,217.2,1.93664069]
[1757460490977,0.03484737,217.26,217.16,0.8006442]
[1757460490978,0.03484737,217.26,217.22,1.93664069]
[1757460491366,0.03484737,217.26,217.23,0.44]
[1757460491572,0.03484737,217.26,217.25,0.44]
[1757460492976,6.99,217.25,217.22,2.37664069]
[1757460493376,0.03484737,217.26,217.23,0.44]
[1757460494779,0.03484737,217.26,217.24,0.45]
[1757460495478,0.03484737,217.26,217.23,0.45]
[1757460496486,0.03484737,217.26,217.22,1.93664069]
[1757460496779,0.03484737,217.26,217.24,0.45]
[1757460501384,0.03484737,217.26,217.23,0.45]
[1757460501684,0.03484737,217.26,217.24,0.45]
[1757460502484,0.03484737,217.26,217.23,0.45]
[1757460502878,0.03484737,217.26,217.25,0.45]
[1757460510289,0.03484737,217.26,217.25,4.30465013]
[1757460512087,0.03484737,217.26,217.25,0.45]